fUSD/lending_fUSD_20260326
["ID","MTS","AMOUNT","RATE_DAILY","PERIOD"]
[418913824,1774534246928,-500.0,0.00014826,2]
[418913825,1774534246938,-151.0,0.00014826,2]
[418913826,1774534246948,-500.0,0.00014826,2]
[418913827,1774534246957,-500.0,0.00014826,2]
[418913828,1774534246966,-250.0,0.00014826,2]
[418913829,1774534246976,-250.0,0.00014826,2]
[418913830,1774534246985,-250.0,0.00014826,2]
[418913831,1774534246995,-250.0,0.00014826,2]
[418913832,1774534247005,-250.0,0.00014826,2]
[418913833,1774534247015,-250.0,0.00014826,2]
[418913834,1774534247025,-250.0,0.00014826,2]
[418913835,1774534247034,-250.0,0.00014826,2]
[418913836,1774534247043,-262.88486835,0.00014826,2]
[418913837,1774534247053,-500.0,0.00014833,2]
[418913838,1774534247062,-503.0,0.00014857,2]
[418913839,1774534247071,-500.0,0.00014881,2]
[418913840,1774534247081,-151.0,0.00014881,2]
[418913841,1774534247090,-1600.0,0.00014927,2]
[418913842,1774534247101,-500.0,0.00014936,2]
[418913843,1774534247112,-151.0,0.00014936,2]
[418913844,1774534247121,-211.47,0.00014936,2]
[418913845,1774534247131,-908.29763,0.00014936,7]
[418913846,1774534247141,-500.0,0.00014991,2]
[418913847,1774534247151,-151.0,0.00014991,2]
[418913848,1774534247162,-352.47,0.00014993,2]
[418913849,1774534247173,-195.0,0.00015,2]
[418913850,1774534247183,-200.0,0.00015,2]
[418913851,1774534247193,-300.0,0.00015,2]
[418913852,1774534247203,-15000.0,0.00015,5]
[418913853,1774534247213,-626.72,0.00015,2]
[418913854,1774534247223,-157.03,0.00015019,2]
[418913855,1774534247233,-500.0,0.00015046,2]
[418913856,1774534247242,-175.7599353,0.00015046,2]
[418913857,1774534247253,-344.55,0.00015068,2]
[418913858,1774534247263,-294.8,0.00015098,2]
[418913859,1774534247273,-178.561689,0.000151,2]
[418913860,1774534247283,-178.561689,0.000151,2]
[418913861,1774534247292,-178.561689,0.000151,2]
[418913862,1774534247302,-178.561689,0.000151,2]
[418913863,1774534247312,-312.0,0.000151,2]
[418913864,1774534247321,-308.0,0.000151,2]
[418913865,1774534247331,-500.0,0.00015101,2]
[418913866,1774534247340,-211.47,0.00015127,2]
[418913867,1774534247350,-209.91479855,0.00015133,2]
[418913868,1774534247360,-346.57987326,0.00015134,7]
[418913869,1774534247369,-500.0,0.00015156,2]
[418913870,1774534247379,-305.94637088,0.00015178,7]
[418913871,1774534247388,-496.39,0.000152,2]
[418913872,1774534247398,-1839.58,0.000152,2]
[418913873,1774534247407,-1895.4,0.000152,2]
[418913874,1774534247418,-500.0,0.000152,2]
[418913875,1774534247428,-500.0,0.000152,2]
[418913876,1774534247437,-500.0,0.000152,2]
[418913877,1774534247447,-500.0,0.000152,2]
[418913878,1774534247456,-500.0,0.00015211,2]
[418913879,1774534247466,-7834.51153493,0.0001524,2]
[418913880,1774534247476,-350.0,0.00015254,2]
[418913881,1774534247486,-350.0,0.00015265,2]
[418913882,1774534247495,-500.0,0.00015266,2]
[418913883,1774534247505,-153.0,0.000153,2]
[418913884,1774534247515,-11908.54,0.000153,2]
[418913885,1774534247524,-1903.86,0.000153,2]
[418913886,1774534247534,-180.066542,0.000153,2]
[418913887,1774534247544,-180.066542,0.000153,2]
[418913888,1774534247554,-180.066542,0.000153,2]
[418913889,1774534247563,-180.066542,0.000153,2]
[418913890,1774534247574,-366.77663085,0.0001531,2]
[418913891,1774534247583,-14041.88,0.0001531,2]
[418913892,1774534247592,-690.696346,0.00015342,2]
[418913893,1774534247602,-690.696346,0.00015342,2]
[418913894,1774534247611,-690.696346,0.00015342,2]
[418913895,1774534247621,-690.696346,0.00015342,2]
[418913896,1774534247630,-500.0,0.00015342,2]
[418913897,1774534247640,-1019.959606,0.00015342,2]
[418913898,1774534247650,-1019.959606,0.00015342,2]
[418913899,1774534247659,-1019.959606,0.00015342,2]
[418913900,1774534247670,-1019.959606,0.00015342,2]
[418913901,1774534247680,-500.89802882,0.00015342,2]
[418913902,1774534247689,-2000.0,0.00015342,2]
[418913903,1774534247699,-502.73579383,0.00015342,2]
[418913904,1774534247708,-2000.0,0.00015342,2]
[418913905,1774534247717,-1889.39669243,0.00015342,2]
[418913906,1774534247727,-2000.0,0.00015342,2]
[418913907,1774534247736,-2000.0,0.00015342,2]
[418913908,1774534247746,-753.901339,0.0001535,7]
[418913909,1774534247756,-2295.4397159,0.00015355,2]
[418913910,1774534247765,-1811.781507,0.00015358,7]
[418913911,1774534247774,-350.0,0.00015374,2]
[418913912,1774534247784,-153.0,0.000154,2]
[418913913,1774534247794,-2337.78,0.000154,2]
[418913914,1774534247804,-158.0,0.00015408,3]
[418913915,1774534247814,-39948.8854905,0.0001546,2]
[418913916,1774534247823,-51355.0380111,0.0001546,2]
[418913917,1774534247833,-4520.1860609,0.0001546,2]
[418913918,1774534247843,-168.12,0.00015477,2]
[418913919,1774534247852,-168.12,0.00015477,2]
[418913920,1774534247861,-4000.0,0.00015507,2]
[418913921,1774534247871,-3397.391275,0.00015615,7]
[418913922,1774534247880,-350.0,0.0001564,2]
[418913923,1774534247890,-2219.37090484,0.0001568,2]
[418913924,1774534247899,-503.0,0.00015714,3]
[418913925,1774534247908,-155.84481505,0.0001572,2]
[418913926,1774534247918,-500.0,0.0001572,2]
[418913927,1774534247928,-500.0,0.0001572,2]
[418913928,1774534247938,-500.0,0.0001572,2]
[418913929,1774534247948,-500.0,0.0001572,2]
[418913930,1774534247958,-500.0,0.0001572,2]
[418913931,1774534247968,-500.0,0.0001572,2]
[418913932,1774534247978,-150.0,0.0001572,2]
[418913933,1774534247988,-500.0,0.0001572,2]
[418913934,1774534247998,-500.0,0.0001572,2]
[418913935,1774534248007,-500.0,0.0001572,2]
[418913936,1774534248017,-152.74342188,0.0001572,2]
[418913937,1774534248028,-500.0,0.0001572,2]
[418913938,1774534248037,-500.0,0.0001572,2]
[418913939,1774534248047,-500.0,0.0001572,2]
[418913940,1774534248058,-500.0,0.0001572,2]
[418913941,1774534248069,-500.0,0.0001572,2]
[418913942,1774534248079,-500.0,0.0001572,2]
[418913943,1774534248088,-170.40246758,0.0001572,2]
[418913944,1774534248097,-500.0,0.0001572,2]
[418913945,1774534248106,-500.0,0.0001572,2]
[418913946,1774534248116,-500.0,0.0001572,2]
[418913947,1774534248125,-500.0,0.0001572,2]
[418913948,1774534248134,-378.87354826,0.0001572,2]
[418913949,1774534248144,-500.0,0.0001572,2]
[418913950,1774534248152,-500.0,0.0001572,2]
[418913951,1774534248161,-206.13980161,0.0001572,2]
[418913952,1774534248171,-500.0,0.0001572,2]
[418913953,1774534248180,-388.14313993,0.0001572,2]
[418913954,1774534248189,-150.0,0.0001572,2]
[418913955,1774534248199,-214.58664017,0.0001572,2]
[418913956,1774534248208,-500.0,0.0001572,2]
[418913957,1774534248218,-500.0,0.0001572,2]
[418913958,1774534248228,-500.0,0.0001572,2]
[418913959,1774534248239,-500.0,0.0001572,2]
[418913960,1774534248250,-500.0,0.0001572,2]
[418913961,1774534248259,-343.66648939,0.0001572,2]
[418913962,1774534248269,-311.0,0.00015722,2]
[418913963,1774534248278,-150.0,0.00015723,2]
[418913964,1774534248288,-150.0,0.00015723,2]
[418913965,1774534248297,-150.0,0.00015723,2]
[418913966,1774534248307,-282.81610969,0.00015723,2]
[418913967,1774534248316,-500.0,0.00015723,2]
[418913968,1774534248325,-157.62886977,0.00015723,2]
[418913969,1774534248334,-500.0,0.00015723,2]
[418913970,1774534248343,-323.33316346,0.00015723,2]
[418913971,1774534248352,-500.0,0.00015723,2]
[418913972,1774534248361,-500.0,0.00015723,2]
[418913973,1774534248370,-500.0,0.00015723,2]
[418913974,1774534248380,-500.0,0.00015723,2]
[418913975,1774534248389,-500.0,0.00015723,2]
[418913976,1774534248397,-500.0,0.00015723,2]
[418913977,1774534248406,-643.67228165,0.00015723,2]
[418913978,1774534248415,-151.0,0.00015723,2]
[418913979,1774534248423,-512.1818314,0.00015742,2]
[418913980,1774534248432,-249.0,0.00015753,2]
[418913981,1774534248441,-344.55,0.00015753,2]
[418913982,1774534248450,-500.0,0.00015781,2]
[418913983,1774534248458,-413.0,0.00015781,2]
[418913984,1774534248467,-500.0,0.0001581,2]
[418913985,1774534248476,-500.0,0.0001581,2]
[418913986,1774534248486,-500.0,0.0001581,2]
[418913987,1774534248495,-500.0,0.0001581,2]
[418913988,1774534248505,-500.0,0.0001581,2]
[418913989,1774534248514,-500.0,0.0001581,2]
[418913990,1774534248523,-500.0,0.0001581,2]
[418913991,1774534248533,-500.0,0.0001581,2]
[418913992,1774534248542,-500.0,0.0001581,2]
[418913993,1774534248551,-500.0,0.0001581,2]
[418913994,1774534248561,-500.0,0.0001581,2]
[418913995,1774534248570,-500.0,0.0001581,2]
[418913996,1774534248579,-500.0,0.0001581,2]
[418913997,1774534248588,-500.0,0.0001581,2]
[418913998,1774534248598,-500.0,0.0001581,2]
[418913999,1774534248607,-500.0,0.0001581,2]
[418914000,1774534248617,-214.95038261,0.0001581,2]
[418914001,1774534248626,-3516.0,0.00015811,2]
[418914002,1774534248635,-1045.0,0.00015811,2]
[418914003,1774534248645,-621.0,0.00015811,2]
[418914004,1774534248654,-1262.0,0.00015811,2]
[418914005,1774534248663,-1216.0,0.00015811,2]
[418914006,1774534248672,-924.0,0.00015811,2]
[418914007,1774534248681,-3763.0,0.00015811,2]
[418914008,1774534248691,-2467.0,0.00015811,2]
[418914009,1774534248700,-1252.0,0.00015817,2]
[418914010,1774534248710,-1959.26279,0.0001584,2]
[418914011,1774534248719,-1959.26279,0.0001584,2]
[418914012,1774534248729,-1959.26279,0.0001584,2]
[418914013,1774534248738,-8913.8012172,0.0001587,2]
[418914014,1774534248748,-11458.8578558,0.0001587,2]
[418914015,1774534248757,-1008.5898396,0.0001587,2]
[418914016,1774534248767,-200.0,0.00015872,2]
[418914017,1774534248777,-2000.0,0.0001589,2]
[418914018,1774534248787,-250.0,0.0001589,2]
[418914019,1774534248796,-2500.0,0.0001589,2]
[418914020,1774534248807,-2500.0,0.0001589,2]
[418914021,1774534248820,-2500.0,0.0001589,2]
[418914022,1774534248829,-4000.0,0.00015895,2]
[418914023,1774534248839,-250.77,0.00015899,2]
[418914024,1774534248848,-153.0,0.000159,3]
[418914025,1774534248857,-155.86,0.000159,3]
[418914026,1774534248867,-151.0,0.000159,2]
[418914027,1774534248878,-151.0,0.000159,2]
[418914028,1774534248887,-151.0,0.000159,2]
[418914029,1774534248897,-209.91479855,0.000159,2]
[418914030,1774534248907,-528.03470926,0.000159,2]
[418914031,1774534248915,-7834.51153493,0.000159,2]
[418914032,1774534248925,-295.92490408,0.000159,2]
[418914033,1774534248934,-165.81014655,0.000159,2]
[418914034,1774534248943,-8916.21344991,0.000159,2]
[418914035,1774534248952,-660.0,0.000159,5]
[418914036,1774534248961,-731.0,0.000159,5]
[418914037,1774534248971,-748.0,0.000159,5]
[418914038,1774534248980,-2601.05,0.00015913,2]
[418914039,1774534248990,-3674.84,0.00015913,2]
[418914040,1774534248999,-5235.63,0.00015913,2]
[418914041,1774534249009,-46615.46,0.00015913,2]
[418914042,1774534249018,-1018.86,0.00015913,2]
[418914043,1774534249028,-8598.2623143,0.00015917,2]
[418914044,1774534249037,-300.0,0.0001597,2]
[418914045,1774534249046,-300.0,0.0001597,2]
[418914046,1774534249055,-400.0,0.0001597,2]
[418914047,1774534249065,-400.0,0.0001597,2]
[418914048,1774534249075,-550.0,0.0001597,2]
[418914049,1774534249084,-311.0,0.00015975,2]
[418914050,1774534249094,-376.86536654,0.0001599,2]
[418914051,1774534249104,-5888.0,0.00015992,2]
[418914052,1774534249114,-1072.41410481,0.00015999,5]
[418914053,1774534249123,-1072.41410481,0.00015999,5]
[418914054,1774534249133,-1072.41410481,0.00015999,5]
[418914055,1774534249143,-1072.41410481,0.00015999,5]
[418914056,1774534249154,-1072.4141048,0.00015999,5]
[418914057,1774534249219,-155.0,0.00015999,2]
[418914058,1774534249230,-354.24,0.00015999,2]
[418914059,1774534249240,-500.0,0.00015999,2]
[418914060,1774534249250,-500.0,0.00015999,2]
[418914061,1774534249260,-500.0,0.00015999,2]
[418914062,1774534249269,-500.0,0.00015999,2]
[418914063,1774534249278,-517.13913932,0.00015999,2]
[418914064,1774534249288,-178.561689,0.00015999,2]
[418914065,1774534249297,-178.561689,0.00015999,2]
[418914066,1774534249306,-178.561689,0.00015999,2]
[418914067,1774534249315,-178.561689,0.00015999,2]
[418914068,1774534249325,-228.45367885,0.00015999,2]
[418914069,1774534249334,-1523.0,0.00015999,2]
[418914070,1774534249343,-1523.0,0.00015999,2]
[418914071,1774534249353,-1523.0,0.00015999,2]
[418914072,1774534249362,-1523.0,0.00015999,2]
[418914073,1774534249372,-1523.0,0.00015999,2]
[418914074,1774534249381,-1523.0,0.00015999,2]
[418914075,1774534249390,-1523.0,0.00015999,2]
[418914076,1774534249399,-1523.0,0.00015999,2]
[418914077,1774534249408,-1523.0,0.00015999,2]
[418914078,1774534249416,-1523.0,0.00015999,2]
[418914079,1774534249426,-1523.0,0.00015999,2]
[418914080,1774534249435,-1523.0,0.00015999,2]
[418914081,1774534249444,-1523.0,0.00015999,2]
[418914082,1774534249453,-1523.0,0.00015999,2]
[418914083,1774534249462,-1523.0,0.00015999,2]
[418914084,1774534249471,-1523.0,0.00015999,2]
[418914085,1774534249480,-1523.0,0.00015999,2]
[418914086,1774534249489,-1523.0,0.00015999,2]
[418914087,1774534249499,-1523.0,0.00015999,2]
[418914088,1774534249508,-1523.0,0.00015999,2]
[418914089,1774534249517,-1523.0,0.00015999,2]
[418914090,1774534249526,-1523.0,0.00015999,2]
[418914091,1774534249536,-1523.0,0.00015999,2]
[418914092,1774534249546,-1258.7277887,0.00015999,2]
[418914093,1774534249555,-1523.0,0.00015999,2]
[418914094,1774534249564,-300.09272576,0.00015999,2]
[418914095,1774534249574,-1523.0,0.00015999,2]
[418914096,1774534249584,-151.0,0.00015999,2]
[418914097,1774534249593,-1523.0,0.00015999,2]
[418914098,1774534249602,-151.0,0.00015999,2]
[418914099,1774534249611,-160.0,0.00015999,2]
[418914100,1774534249620,-1523.0,0.00015999,2]
[418914101,1774534249629,-151.0,0.00015999,2]
[418914102,1774534249638,-160.0,0.00015999,2]
[418914103,1774534249647,-151.0,0.00015999,2]
[418914104,1774534249658,-162.81500828,0.00015999,2]
[418914105,1774534249667,-1523.0,0.00015999,2]
[418914106,1774534249676,-151.0,0.00015999,2]
[418914107,1774534249685,-1523.0,0.00015999,2]
[418914108,1774534249694,-151.0,0.00015999,2]
[418914109,1774534249703,-151.0,0.00015999,2]
[418914110,1774534249712,-1523.0,0.00015999,2]
[418914111,1774534249721,-151.0,0.00015999,2]
[418914112,1774534249730,-1523.0,0.00015999,2]
[418914113,1774534249739,-151.0,0.00015999,2]
[418914114,1774534249748,-1523.0,0.00015999,2]
[418914115,1774534249757,-151.0,0.00015999,2]
[418914116,1774534249765,-1523.0,0.00015999,2]
[418914117,1774534249774,-151.0,0.00015999,2]
[418914118,1774534249785,-1523.0,0.00015999,2]
[418914119,1774534249794,-151.0,0.00015999,2]
[418914120,1774534249803,-1523.0,0.00015999,2]
[418914121,1774534249812,-151.0,0.00015999,2]
[418914122,1774534249821,-1523.0,0.00015999,2]
[418914123,1774534249830,-151.0,0.00015999,2]
[418914124,1774534249840,-151.0,0.00015999,2]
[418914125,1774534249849,-1523.0,0.00015999,2]
[418914126,1774534249859,-151.0,0.00015999,2]
[418914127,1774534249868,-1523.0,0.00015999,2]
[418914128,1774534249877,-151.0,0.00015999,2]
[418914129,1774534249886,-1523.0,0.00015999,2]
[418914130,1774534249895,-151.0,0.00015999,2]
[418914131,1774534249905,-1523.0,0.00015999,2]
[418914132,1774534249914,-151.0,0.00015999,2]
[418914133,1774534249923,-1523.0,0.00015999,2]
[418914134,1774534249932,-1523.0,0.00015999,2]
[418914135,1774534249941,-1523.0,0.00015999,2]
[418914136,1774534249951,-1523.0,0.00015999,2]
[418914137,1774534249960,-1523.0,0.00015999,2]
[418914138,1774534249969,-300.11645162,0.00015999,2]
[418914139,1774534249979,-1339.7708018,0.00016,2]
[418914140,1774534250372,-151.0,0.00011934,2]
[418914141,1774534250381,-6011.0,0.0001535,2]
[418914142,1774534250390,-127254.00275093,0.00016,2]
[418914143,1774534250402,-1152.63623287,0.00016,2]
[418914144,1774534250420,-1027.23724345,0.00016,2]
[418914145,1774534250602,-21507.79550829,0.00016,2]
[418914146,1774534250617,-108335.9714785,0.00016,2]
[418914147,1774534250647,-2078.99999997,0.00012833,2]
[418914148,1774534250665,-9074.76294108,0.00012833,2]
[418914149,1774534250680,-3438.26080176,0.00012833,2]
[418914150,1774534250696,-387.93218086,0.00012833,2]
[418914179,1774535431765,-500.0,0.00010139,2]
[418914180,1774535431775,-250.0,0.00010411,2]
[418914181,1774535431784,-250.0,0.00010601,2]
[418914182,1774535431793,-300.0,0.00010667,2]
[418914183,1774535431803,-1200.0,0.00010667,2]
[418914184,1774535431812,-300.0,0.00010667,2]
[418914185,1774535431823,-150.0,0.00010667,2]
[418914186,1774535431832,-300.0,0.00010667,2]
[418914187,1774535431841,-541.94786815,0.00010668,2]
[418914188,1774535431857,-1300.02062531,0.00010668,2]
[418914318,1774535441598,-7800.0,0.00010668,2]
[418914319,1774535441663,-13893.62240269,0.00010668,2]
[418914320,1774535441733,-68158.03160385,0.00010668,2]
[418914321,1774535441742,-1841.96839631,0.00010668,2]
[418914322,1774535441801,-308.88287737,0.00010668,2]
[418914323,1774535441812,-572.84196848,0.00010668,2]
[418914324,1774535441823,-1858.18325203,0.00010668,2]
[418914325,1774535441835,-799.53818555,0.00010668,2]
[418914326,1774535441881,-347.25,0.00010668,2]
[418914333,1774535442196,-335.90610531,0.00010668,2]
[418914334,1774535442264,-1493935.42921495,0.00010668,2]
[418914335,1774535442273,-400.0,0.00010745,4]
[418914336,1774535442283,-500.0,0.00010767,2]
[418914337,1774535442292,-500.0,0.00010767,2]
[418914338,1774535442301,-500.0,0.00010767,2]
[418914339,1774535442310,-500.0,0.00010767,2]
[418914340,1774535442319,-500.0,0.00010767,2]
[418914341,1774535442328,-500.0,0.00010767,2]
[418914342,1774535442338,-259.079882,0.00010767,2]
[418914343,1774535442347,-500.0,0.00010767,2]
[418914344,1774535442356,-500.0,0.00010767,2]
[418914345,1774535442366,-500.0,0.00010767,2]
[418914346,1774535442375,-500.0,0.00010767,2]
[418914347,1774535442384,-500.0,0.00010767,2]
[418914348,1774535442394,-2330.231,0.00010767,2]
[418914349,1774535442404,-152.351,0.00010767,2]
[418914350,1774535442414,-170148.52,0.00010768,2]
[418914351,1774535442423,-2500.0,0.000108,2]
[418914352,1774535442433,-352.02313952,0.000108,2]
[418914353,1774535442442,-179.92697022,0.000108,2]
[418914354,1774535442453,-500.65855291,0.00010873,2]
[418914355,1774535442467,-501.41443417,0.00010873,2]
[418914356,1774535442476,-500.0,0.00010873,2]
[418914357,1774535442487,-500.0,0.00010873,2]
[418914358,1774535442499,-200.0,0.00010893,2]
[418914359,1774535442509,-151.0,0.00010893,2]
[418914360,1774535442519,-151.0,0.00010893,2]
[418914361,1774535442530,-151.0,0.00010893,2]
[418914362,1774535442541,-151.0,0.00010893,2]
[418914363,1774535442551,-151.0,0.00010893,2]
[418914364,1774535442560,-151.0,0.00010893,2]
[418914365,1774535442570,-151.0,0.00010893,2]
[418914366,1774535442580,-151.0,0.00010893,2]
[418914367,1774535442589,-151.0,0.00010893,2]
[418914368,1774535442599,-151.0,0.00010893,2]
[418914369,1774535442608,-151.0,0.00010893,2]
[418914370,1774535442618,-1337.30371513,0.00010893,2]
[418914371,1774535442632,-151.0,0.00010893,2]
[418914372,1774535442641,-151.0,0.00010897,2]
[418914373,1774535442651,-500.0,0.00010899,2]
[418914374,1774535442662,-1072.41410481,0.00010899,3]
[418914375,1774535442673,-1072.41410481,0.00010899,3]
[418914376,1774535442683,-1041.12610786,0.00010899,3]
[418914377,1774535442693,-4525.72,0.00010947,2]
[418914378,1774535442702,-500.0,0.00010959,2]
[418914379,1774535442711,-6419.73258483,0.00011,2]
[418914380,1774535442721,-61298.02581253,0.00011099,2]
[418914381,1774535442733,-53101.63676722,0.00011099,2]
[418914382,1774535442743,-197.2832694,0.000111,2]
[418914383,1774535442753,-250.0,0.00011153,2]
[418914384,1774535442763,-500.0,0.00011173,2]
[418914385,1774535442773,-500.0,0.00011173,2]
[418914386,1774535442782,-500.0,0.00011173,2]
[418914387,1774535442792,-500.0,0.00011173,2]
[418914388,1774535442801,-167.43898951,0.00011173,2]
[418914389,1774535442811,-500.0,0.00011173,2]
[418914397,1774535443119,-251.24357769,0.00011189,2]
[418914398,1774535443145,-500.0,0.00011198,2]
[418914399,1774535443156,-500.0,0.00011198,2]
[418914400,1774535443167,-266.21308842,0.00011198,2]
[418914401,1774535443177,-500.0,0.00011198,2]
[418914402,1774535443187,-500.0,0.00011198,2]
[418914403,1774535443197,-181.23286338,0.00011198,2]
[418914404,1774535443207,-234.36528702,0.00011198,2]
[418914405,1774535443218,-500.0,0.00011198,2]
[418914406,1774535443228,-1041.12610786,0.00011198,3]
[418914407,1774535443238,-1000.0,0.000112,2]
[418914408,1774535443248,-150.0,0.000112,2]
[418914409,1774535443258,-32997.7747,0.000112,2]
[418914410,1774535443281,-53101.6367672,0.00011278,2]
[418914411,1774535443292,-501.5521482,0.00011421,2]
[418914412,1774535443302,-1076.39869615,0.00011421,2]
[418914413,1774535443312,-200.0,0.00011441,2]
[418914414,1774535443322,-1386.78395259,0.00011441,2]
[418914415,1774535443335,-500.0,0.00011447,2]
[418914416,1774535443344,-3334.29,0.00011507,2]
[418914417,1774535443356,-151.0,0.00011508,2]
[418914418,1774535443365,-151.0,0.00011518,2]
[418914419,1774535443376,-61298.02581253,0.00011544,2]
[418914420,1774535443386,-179.92697018,0.0001165,2]
[418914421,1774535443397,-979.16666667,0.00011666,2]
[418914422,1774535443407,-160.0,0.00011666,2]
[418914423,1774535443417,-255.0,0.00011702,2]
[418914424,1774535443426,-1000.0,0.00011721,2]
[418914425,1774535443436,-1000.0,0.00011721,2]
[418914426,1774535443446,-500.0,0.00011721,2]
[418914427,1774535443457,-420.0,0.00011726,2]
[418914428,1774535443467,-420.0,0.00011726,2]
[418914429,1774535443477,-1680.0,0.00011734,2]
[418914430,1774535443487,-300.0,0.0001175,2]
[418914431,1774535443497,-300.0,0.0001175,2]
[418914432,1774535443507,-300.0,0.0001175,2]
[418914433,1774535443516,-300.0,0.0001175,2]
[418914434,1774535443527,-300.0,0.0001175,2]
[418914435,1774535443537,-53101.6367672,0.00011856,2]
[418914436,1774535443547,-200.0,0.00011989,2]
[418914437,1774535443559,-1438.09495884,0.00011989,2]
[418914438,1774535443569,-500.0,0.00011995,2]
[418914439,1774535443580,-61298.02581253,0.00012089,2]
[418914440,1774535443591,-155.08,0.00012129,2]
[418914441,1774535443600,-2828.7,0.00012167,2]
[418914442,1774535443611,-2828.7,0.00012167,2]
[418914443,1774535443621,-2828.7,0.00012167,2]
[418914444,1774535443630,-2828.7,0.00012167,2]
[418914445,1774535443640,-2828.7,0.00012167,2]
[418914446,1774535443651,-2828.7,0.00012167,2]
[418914447,1774535443662,-2828.7,0.00012167,2]
[418914448,1774535443672,-2828.7,0.00012167,2]
[418914449,1774535443681,-2828.7,0.00012167,2]
[418914450,1774535443691,-2828.7,0.00012167,2]
[418914451,1774535443701,-1478.96152073,0.00012268,2]
[418914452,1774535443711,-1507.06187853,0.00012268,2]
[418914453,1774535443720,-308.35748757,0.00012269,2]
[418914454,1774535443730,-53101.6367672,0.00012433,2]
[418914455,1774535443739,-179.92697018,0.000125,2]
[418914456,1774535443750,-232.44995365,0.00012537,2]
[418914457,1774535443760,-1491.30447232,0.00012537,2]
[418914458,1774535443770,-197.2574,0.000126,2]
[418914459,1774535443780,-61298.02581253,0.00012633,2]
[418914460,1774535443789,-1262.0,0.00012811,2]
[418914461,1774535443799,-150.0,0.00012811,2]
[418914462,1774535443809,-924.0,0.00012811,2]
[418914463,1774535443818,-1216.0,0.00012811,2]
[418914464,1774535443829,-1045.0,0.00012811,2]
[418914465,1774535443839,-621.0,0.00012811,2]
[418914466,1774535443848,-6011.0,0.00012811,2]
[418914467,1774535443858,-433.0,0.00012832,2]
[418914468,1774535443868,-198.0,0.00012833,3]
[418914469,1774535443878,-160.0,0.00012833,3]
[418914470,1774535443887,-158.0,0.00012833,3]
[418914471,1774535443897,-587.0,0.0001289,2]
[418914472,1774535443918,-2351.0,0.00012907,2]
[418914473,1774535443930,-250.0,0.00013,2]
[418914474,1774535443941,-53101.6367672,0.00013011,2]
[418914475,1774535443950,-1546.48273779,0.00013085,2]
[418914476,1774535443962,-1000.0,0.00013101,2]
[418914477,1774535443971,-61298.02581253,0.00013178,2]
[418914478,1774535443982,-151.0,0.00013341,2]
[418914479,1774535443992,-352.0231395,0.0001335,2]
[418914480,1774535444001,-179.92697018,0.0001335,2]
[418914481,1774535444011,-250.0,0.00013397,2]
[418914482,1774535444021,-3240.0,0.00013425,2]
[418914483,1774535444031,-197.28326938,0.000135,2]
[418914484,1774535444041,-53101.6367672,0.00013589,2]
[418914485,1774535444051,-1603.70259909,0.00013633,2]
[418914486,1774535444061,-540.63437119,0.00013698,2]
[418914487,1774535444071,-500.0,0.00013698,2]
[418914488,1774535444082,-500.0,0.00013698,2]
[418914489,1774535444092,-500.0,0.00013698,2]
[418914490,1774535444102,-500.0,0.00013698,2]
[418914491,1774535444111,-500.0,0.00013698,2]
[418914492,1774535444121,-171.67689472,0.00013698,2]
[418914493,1774535444132,-500.0,0.00013698,2]